bitfinex/quotes_ETHUSD_20220226
["timestamp","ask_amount","ask_price","bid_price","bid_amount"]
[1645853824259,2.0,2785.0,2784.5,0.14873476]
[1645853824555,2.0,2785.0,2784.5,0.65973476]
[1645853824757,0.02525381,2784.7,2784.5,0.65973476]
[1645853824957,0.02525381,2784.7,2784.6,4.34782]
[1645853825154,2.0,2785.0,2784.6,5.00242]
[1645853825362,2.0,2785.0,2784.7,0.1436]
[1645853825555,2.0,2785.0,2784.8,0.8655]
[1645853825757,0.00513304,2785.3,2784.9,3.9981]
[1645853825955,0.00513304,2785.3,2785.0,0.511]
[1645853826155,0.00513304,2785.3,2785.1,0.3545]
[1645853826354,0.1436,2786.8,2785.2,0.511]
[1645853826557,1.51727377,2786.7,2785.3,0.511]
[1645853826756,1.87177377,2786.6,2785.4,4.46935489]
[1645853827057,0.4979,2786.9,2785.4,4.4665]
[1645853827257,1.51717423,2786.8,2785.5,0.00285489]
[1645853827509,0.1434,2787.0,2785.6,0.3545]
[1645853827710,0.1434,2787.0,2785.7,0.8655]
[1645853827913,0.00513635,2786.3,2785.7,0.8655]
[1645853828210,0.00513635,2786.3,2785.7,0.511]
[1645853828609,1.53299999,2785.6,2785.5,0.00285489]
[1645853828807,1.53299999,2785.6,2785.4,3.9555]
[1645853829812,1.53299999,2785.6,2785.4,4.4665]
[1645853830417,1.53813699,2785.6,2785.4,4.4665]
[1645853831350,1.53299999,2785.6,2785.4,4.4665]
[1645853831556,1.53813699,2785.6,2785.4,4.4665]
[1645853832361,1.53299999,2785.6,2785.4,4.4665]
[1645853832759,1.53813699,2785.6,2785.4,4.4665]
[1645853833361,1.53813699,2785.6,2785.5,0.3545]
[1645853833560,1.53299999,2785.6,2785.5,0.8655]
[1645853833960,1.53538053,2785.6,2785.5,0.8655]
[1645853834762,1.53299999,2785.6,2785.5,0.8655]
[1645853835420,1.53299999,2785.6,2785.5,1.76301]
[1645853838850,1.53299999,2785.6,2785.5,0.8655]
[1645853841357,1.53299999,2785.6,2785.5,1.4085]
[1645853842623,1.53299999,2785.6,2785.5,1.763]
[1645853842819,1.53299999,2785.6,2785.5,12.583]
[1645853843520,1.53299999,2785.6,2785.5,1.763]
[1645853843723,1.53299999,2785.6,2785.4,4.5555]
[1645853844121,1.53299999,2785.6,2785.5,0.511]
[1645853845830,1.53299999,2785.6,2785.4,3.9555]
[1645853846029,1.02868376,2785.5,2785.4,3.9555]
[1645853846471,1.53299999,2785.6,2785.4,3.9555]
[1645853848968,1.53176684,2785.6,2785.4,3.9555]
[1645853849570,1.53658023,2785.6,2785.4,3.9555]
[1645853850403,1.53176684,2785.6,2785.4,3.9555]
[1645853850811,1.53176684,2785.6,2784.2,0.01991475]
[1645853850812,7.0,2785.2,2784.2,0.01991475]
[1645853851026,0.01268788,2784.4,2784.2,0.01991475]
[1645853851214,0.17995513,2784.4,2784.2,0.01991475]
[1645853851412,0.01268788,2784.4,2784.1,8.51696553]
[1645853851615,0.1436,2784.6,2784.1,8.51696553]
[1645853852011,0.4981,2784.9,2784.1,8.51696553]
[1645853852213,0.3545,2784.7,2784.1,8.51696553]
[1645853852410,0.3545,2784.5,2784.1,8.51696553]
[1645853853709,0.3545,2784.8,2784.1,8.51696553]
[1645853854105,0.3545,2784.8,2784.2,3.3275]
[1645853854305,0.00514506,2784.4,2784.2,3.3275]
[1645853855205,0.3545,2784.6,2784.2,3.3275]
[1645853855405,0.3545,2784.5,2784.2,3.3275]
[1645853855606,0.00514506,2784.4,2784.2,3.2275]
[1645853855805,0.00514506,2784.4,2784.1,8.52211129]
[1645853856008,0.3545,2784.3,2784.1,8.52211129]
[1645853856405,0.3545,2784.3,2784.1,8.51696553]
[1645853856805,0.3545,2784.3,2784.1,8.52211121]
[1645853857005,0.00514508,2784.4,2784.1,8.52211121]
[1645853857616,0.3545,2784.5,2784.1,8.52211121]
[1645853857617,0.3545,2784.5,2784.1,8.51696553]
[1645853857817,0.8655,2784.5,2784.1,8.51696553]
[1645853858021,0.00514511,2784.4,2784.1,8.52211125]
[1645853858621,0.00514511,2784.4,2784.2,3.5865]
[1645853858822,0.00514511,2784.4,2784.2,3.4865]
[1645853859019,0.3545,2784.8,2784.2,3.4865]
[1645853859421,1.32481533,2785.2,2784.2,3.4865]
[1645853859422,0.3545,2785.1,2784.2,3.4865]
[1645853859620,0.3545,2785.1,2784.3,0.00284539]
[1645853860424,0.3545,2785.2,2784.3,0.00284539]
[1645853862176,0.3545,2785.2,2784.2,3.43934539]
[1645853862778,0.00514808,2784.9,2784.2,3.43934539]
[1645853863780,4.8545,2785.2,2784.2,3.43934539]
[1645853863982,0.00240952,2784.7,2784.2,3.43934539]
[1645853864781,4.8545,2785.2,2784.2,3.43934539]
[1645853865005,0.3545,2785.0,2784.2,3.43934539]
[1645853865205,0.00240952,2784.6,2784.2,3.43934539]
[1645853866012,1.76219152,2785.3,2784.2,3.43820724]
[1645853866212,0.00515213,2784.5,2784.2,3.43820724]
[1645853867212,1.0768614,2784.9,2784.2,3.43820724]
[1645853867512,0.00515218,2784.5,2784.2,3.43820724]
[1645853867712,0.00515218,2784.5,2784.1,8.5221185]
[1645853867912,1.11041824,2784.4,2784.1,8.5221185]
[1645853868313,0.00515218,2784.5,2784.1,8.5221185]
[1645853868512,0.52464089,2785.0,2784.1,8.51696553]
[1645853868513,0.3545,2784.8,2784.1,8.51696553]
[1645853868755,0.00515227,2784.4,2784.1,8.52211841]
[1645853869757,1.40893655,2784.6,2784.1,8.51696553]
[1645853869958,0.00515227,2784.4,2784.1,8.52211841]
[1645853870759,0.00515227,2784.4,2784.1,8.51696553]
[1645853870960,2.76343655,2784.6,2784.1,8.51696553]
[1645853871165,0.00515227,2784.4,2784.1,8.52211841]
[1645853872162,1.40893655,2784.6,2784.1,8.51696553]
[1645853872415,1.40893655,2784.6,2784.1,8.52211841]
[1645853872416,0.00515227,2784.4,2784.1,8.52211841]
[1645853873213,1.3,2784.7,2784.1,8.26696553]
[1645853873614,0.00515227,2784.4,2784.1,8.27211841]
[1645853874517,1.87788426,2784.8,2784.1,8.26696553]
[1645853874719,0.00515227,2784.4,2784.1,8.27211841]
[1645853875517,0.00515227,2784.4,2784.1,8.12211841]
[1645853875720,1.3,2784.7,2784.1,8.11696553]
[1645853875918,0.00515227,2784.4,2784.1,8.12211841]
[1645853876962,0.51164715,2784.7,2784.1,8.11696553]
[1645853876963,0.3,2784.7,2784.1,8.11696553]
[1645853877159,0.00515227,2784.4,2784.1,8.12211841]
[1645853878161,0.3,2784.7,2784.1,8.12211841]
[1645853878162,1.87788426,2784.8,2784.1,8.11696553]
[1645853878361,0.00515227,2784.4,2784.1,8.12211841]
[1645853879364,1.61859152,2785.3,2784.3,1.19993581]
[1645853879566,0.00515227,2784.4,2784.3,1.19993581]
[1645853879764,0.00515227,2784.4,2784.3,1.20276859]
[1645853880006,0.00515227,2784.4,2784.3,1.19993581]
[1645853880606,1.61859152,2785.3,2784.3,1.19993581]
[1645853880808,0.00515218,2784.5,2784.3,1.20276859]
[1645853881008,0.00515218,2784.5,2784.3,1.19993581]
[1645853881808,1.61859152,2785.3,2784.3,1.19993581]
[1645853882014,0.00240581,2784.5,2784.3,1.20276859]
[1645853882214,0.00240581,2784.5,2784.3,1.19993581]
[1645853882811,1.61859152,2785.3,2784.3,1.19993581]
[1645853883012,1.61859152,2785.3,2784.4,0.3545]
[1645853883215,1.61859152,2785.3,2784.6,0.3545]
[1645853883413,1.61859152,2785.3,2784.8,0.3545]
[1645853884263,1.53176684,2785.6,2784.9,1.32694006]
[1645853884264,0.00240581,2785.2,2784.9,1.32694006]
[1645853884468,0.00240581,2785.2,2784.6,7.272]
[1645853884674,0.00240581,2785.2,2784.6,3.772]
[1645853885068,0.00240581,2785.2,2784.6,7.272]
[1645853885267,1.53176684,2785.6,2784.7,0.8655]
[1645853885468,1.53176684,2785.6,2784.9,2.14972]
[1645853885670,1.53176684,2785.6,2785.1,0.3545]
[1645853886167,1.53176684,2785.6,2785.3,1.2491786]
[1645853886668,1.53176684,2785.6,2785.4,3.5]
[1645853886868,1.53691423,2785.6,2785.3,1.2491786]
[1645853887420,1.53691423,2785.6,2785.3,1.6036786]
[1645853887611,1.53176684,2785.6,2785.3,1.6036786]
[1645853887812,1.53176684,2785.6,2785.3,1.2491786]
[1645853888011,1.53176684,2785.6,2785.1,0.1436]
[1645853888012,1.53691423,2785.6,2785.1,0.1436]
[1645853888614,1.53691423,2785.6,2785.1,0.4981]
[1645853888814,1.53176684,2785.6,2785.1,0.1436]
[1645853889215,0.00514748,2785.5,2785.1,0.1436]
[1645853889415,0.00514748,2785.5,2785.1,1.32143196]
[1645853889816,0.00514748,2785.5,2785.2,0.3545]
[1645853890018,1.53176684,2785.6,2785.2,0.3545]
[1645853890217,1.53176684,2785.6,2785.1,1.32143196]
[1645853890416,0.00514753,2785.4,2785.1,1.32143196]
[1645853891279,1.53176684,2785.6,2785.1,1.32143196]
[1645853891479,0.00514758,2785.4,2785.1,1.32143196]
[1645853891681,0.00514758,2785.4,2785.2,0.3545]
[1645853891881,0.00514758,2785.4,2785.1,1.32143196]
[1645853892486,1.53176684,2785.6,2785.1,1.32143196]
[1645853892689,0.00514758,2785.4,2785.2,0.3545]
[1645853892887,0.00514758,2785.4,2785.3,4.75205]
[1645853892888,4.758e-05,2785.4,2785.3,4.75205]
[1645853893088,4.758e-05,2785.4,2785.3,6.3041782]
[1645853893287,1.53176684,2785.6,2785.4,3.8545]
[1645853893486,1.53176684,2785.6,2785.5,0.6546]
[1645853893690,1.53176684,2785.6,2785.5,1.0091]
[1645853893887,0.1436,2786.9,2785.7,11.1745]
[1645853894089,1.51688233,2786.8,2786.0,0.89721]
[1645853894290,1.14140869,2787.3,2786.1,0.511]
[1645853894488,0.3545,2787.1,2785.6,3.5505]
[1645853894690,0.3545,2786.9,2785.6,3.5505]
[1645853894911,1.51686873,2786.8,2785.6,3.5505]
[1645853895107,1.14484491,2786.3,2785.6,3.5505]
[1645853895310,1.87173893,2786.2,2785.6,3.5505]
[1645853895507,1.51730372,2786.1,2785.6,3.5505]
[1645853895706,1.51730372,2786.1,2785.6,1.93199141]
[1645853896312,1.0,2786.3,2785.6,1.93199141]
[1645853896313,0.00240199,2786.0,2785.6,1.93199141]
[1645853897313,1.12643749,2786.1,2785.6,1.93199141]
[1645853897512,0.00515075,2785.9,2785.6,1.93199141]
[1645853898514,0.1434,2786.6,2785.6,1.93199141]
[1645853898757,0.00515079,2785.9,2785.6,1.93199141]
[1645853899757,0.1434,2786.6,2785.6,1.93199141]
[1645853899960,0.00515079,2785.9,2785.6,1.93199141]
[1645853901066,0.1434,2786.4,2785.6,1.93199141]
[1645853901263,0.00515079,2785.9,2785.6,1.93199141]
[1645853902066,0.1434,2786.4,2785.6,1.93199141]
[1645853902263,0.3545,2786.2,2785.6,1.93199141]
[1645853902523,0.0051545,2785.9,2785.6,1.93199141]
[1645853903326,0.4979,2786.4,2785.6,1.93199141]
[1645853903527,0.0051545,2785.9,2785.6,1.93199141]
[1645853904529,1.5453169,2786.4,2785.6,1.93199141]
[1645853904828,1.50678159,2786.3,2785.6,1.93199141]
[1645853905026,0.3545,2786.6,2785.6,1.93199141]
[1645853907062,0.4979,2786.9,2785.6,1.93199141]
[1645853907261,1.58309229,2786.9,2786.0,1.18974783]
[1645853907462,1.53309229,2786.9,2785.7,1.2021]
[1645853908365,0.00240015,2786.4,2785.7,1.2021]
[1645853908563,0.00240015,2786.4,2785.8,1.17675431]
[1645853909362,1.53309229,2786.9,2785.8,1.17675431]
[1645853909563,0.00514203,2786.2,2785.8,1.17675431]
[1645853910608,1.43969229,2786.9,2785.8,1.17675431]
[1645853910812,9.45,2787.0,2785.8,1.17675431]
[1645853911012,0.65973986,2787.7,2786.0,12.882]
[1645853911216,0.02979325,2787.8,2786.3,6.382]
[1645853911415,0.19602055,2788.4,2787.0,6.382]
[1645853911615,0.5,2788.6,2787.2,7.0]
[1645853912015,4.32628481,2789.3,2787.9,0.89668]
[1645853912214,0.5,2789.0,2788.3,0.8965338]
[1645853912414,0.5,2789.0,2788.4,0.6544]
[1645853912415,7.95,2789.0,2788.4,0.6544]
[1645853912613,7.45,2789.0,2788.4,0.6544]
[1645853912812,7.45,2789.0,2788.6,1.40421503]
[1645853913013,7.35,2789.0,2788.7,0.511]
[1645853913219,7.35,2789.0,2788.2,2.0930676]
[1645853913220,0.00959911,2789.3,2788.8,0.511]
[1645853913419,0.00959911,2789.3,2788.0,0.761]
[1645853913668,7.45,2789.2,2788.0,0.761]
[1645853913866,3.6434,2789.1,2788.0,0.761]
[1645853914066,3.6434,2789.1,2788.1,1.34347435]
[1645853914274,3.6434,2789.1,2788.0,0.761]
[1645853914472,0.00513956,2788.7,2788.0,0.761]
[1645853914675,0.00513956,2788.7,2788.0,0.511]
[1645853915074,0.00513956,2788.7,2788.0,0.39619343]
[1645853915273,4.5,2789.0,2788.0,0.39619343]
[1645853915475,1.40079,2788.7,2787.6,6.703]
[1645853915677,0.00513981,2788.5,2787.6,7.0706]
[1645853915875,0.00513981,2788.5,2787.6,4.94221654]
[1645853915876,0.35963981,2788.5,2787.6,4.94221654]
[1645853916178,3.5,2788.4,2787.6,4.0568]
[1645853916576,4.5,2788.4,2787.6,4.20482187]
[1645853916776,0.00514015,2788.1,2787.6,4.20482187]
[1645853917179,0.00514015,2788.1,2787.6,2.8116]
[1645853917832,0.00444309,2788.3,2787.6,2.8116]
[1645853918016,0.0051403,2788.0,2787.6,2.8116]
[1645853918216,0.0051403,2788.0,2787.6,3.96132867]
[1645853918821,0.0051403,2788.0,2787.6,2.8116]
[1645853919018,0.00444309,2788.3,2787.6,2.8116]
[1645853919217,0.00514035,2787.9,2787.6,2.8116]
[1645853920020,0.00514035,2787.9,2787.3,0.511]
[1645853920222,0.35894309,2788.3,2787.3,0.511]
[1645853920422,0.0051404,2787.9,2787.3,0.511]
[1645853921172,0.0051404,2787.9,2787.1,5.54549997]
[1645853921173,0.0051404,2787.9,2787.1,2.8209]
[1645853921375,3.85894309,2788.0,2787.0,1.2003]
[1645853921572,0.00514055,2787.7,2787.0,1.20544188]
[1645853922474,5.00234309,2788.0,2786.8,1.18791824]
[1645853922876,0.0051408,2787.5,2787.0,0.00514167]
[1645853923676,5.02290224,2788.0,2786.8,1.18791824]
[1645853923677,5.00234309,2788.0,2786.8,1.18791824]
[1645853923880,5.00234309,2788.0,2787.0,0.00514158]
[1645853924077,0.00514089,2787.4,2787.0,0.00514158]
[1645853924681,0.1434,2787.3,2787.0,0.00514158]
[1645853924933,0.1434,2787.3,2786.7,0.25]
[1645853924934,1.25833645,2787.1,2786.7,0.25]
[1645853925116,1.91283645,2787.1,2786.2,2.8067]
[1645853925318,3.6434,2787.0,2786.2,2.8067]
[1645853925519,0.4979,2787.0,2786.1,0.08819997]
[1645853925719,1.3545,2787.0,2786.1,0.08819997]
[1645853925920,0.00444309,2787.2,2786.1,0.08819997]
[1645853926320,1.46148335,2787.2,2786.1,0.08819997]
[1645853926522,0.00444309,2787.2,2786.4,0.0051421]
[1645853926721,0.1434,2787.2,2786.4,0.0051421]
[1645853926921,0.14784309,2787.2,2786.4,0.0051421]
[1645853927322,0.14784309,2787.2,2786.1,0.08819997]
[1645853927520,0.00444309,2787.2,2786.1,0.08819997]
[1645853927819,0.1434,2787.2,2786.1,0.08819997]
[1645853928019,0.00444309,2787.1,2786.2,2.7549]
[1645853928220,0.00682734,2787.3,2786.2,2.7549]
[1645853928421,0.00444309,2787.5,2786.2,2.7549]
[1645853928669,0.00444309,2787.5,2786.6,0.00514563]
[1645853928873,0.00514428,2787.3,2786.6,0.00514563]
[1645853929273,0.00958737,2787.3,2786.6,0.00514563]
[1645853929670,0.00444309,2787.3,2786.2,2.7549]
[1645853929872,1.14466344,2787.3,2786.8,0.00487848]
[1645853930071,1.14022035,2787.3,2786.8,0.00487848]
[1645853930272,0.00487756,2787.3,2786.8,0.00487848]
[1645853930871,0.00444309,2787.5,2786.2,2.7549]
[1645853931073,0.00444309,2787.5,2786.3,0.3545]
[1645853931275,0.00487764,2787.3,2786.9,0.00487839]
[1645853931679,0.00487764,2787.3,2787.0,0.511]
[1645853932273,0.1434,2788.2,2787.0,0.511]
[1645853932274,0.00444309,2788.1,2787.0,0.511]
[1645853932523,0.01950603,2788.0,2787.0,0.5158783]
[1645853933324,0.3545,2787.8,2786.4,2.255]
[1645853933528,0.3545,2787.8,2786.3,0.25]
[1645853933529,1.43678586,2786.7,2786.3,0.25]
[1645853933923,6.90564309,2787.3,2785.8,5.6263]
[1645853934123,0.19356104,2787.2,2785.8,5.6263]
[1645853934329,0.14784309,2787.1,2785.8,5.6263]
[1645853934526,0.3545,2787.0,2785.8,5.6263]
[1645853934731,3.8545,2786.9,2785.8,5.6263]
[1645853934923,1.42727473,2786.8,2786.4,0.00482265]
[1645853935526,1.0,2786.9,2786.4,0.00482265]
[1645853935726,0.3545,2786.9,2785.8,5.6263]
[1645853936158,1.0,2787.0,2786.5,0.00482256]
[1645853936356,0.1434,2787.1,2786.5,0.00482256]
[1645853936758,1.163516,2786.9,2786.5,0.00482256]
[1645853936963,0.3545,2786.9,2785.9,1.37442676]
[1645853937260,3.50444309,2787.0,2786.7,0.00482238]
[1645853937463,0.00964475,2786.5,2785.9,1.37442676]
[1645853938262,0.00964475,2786.5,2785.8,5.6263]
[1645853939363,0.00964475,2786.5,2785.8,6.92311569]
[1645853941420,0.00964475,2786.5,2785.8,7.57761569]
[1645853941619,0.00964475,2786.5,2785.8,8.08861569]
[1645853942019,0.00964475,2786.5,2786.0,0.00514622]
[1645853942223,0.00964475,2786.5,2786.1,0.8655]
[1645853942619,0.00964475,2786.5,2786.1,1.1655]
[1645853943022,0.00964475,2786.5,2786.3,1.02616542]
[1645853944058,0.00964475,2786.5,2786.3,1.38066542]
[1645853944262,0.00964475,2786.5,2786.3,1.89166542]
[1645853944566,0.00964475,2786.5,2786.3,2.19681139]
[1645853945465,0.00964475,2786.5,2786.3,2.19166542]
[1645853945668,0.00964475,2786.5,2786.3,2.19681139]
[1645853945869,0.00964475,2786.5,2786.4,2.8251]
[1645853946066,0.00964475,2786.5,2786.4,3.3361]
[1645853946265,0.00964475,2786.5,2786.4,4.3361]
[1645853946666,0.00964475,2786.5,2786.4,3.3361]
[1645853946865,0.00964475,2786.5,2786.4,3.6361]
[1645853948119,0.00964475,2786.5,2786.4,4.6361]
[1645853952059,0.02057303,2787.8,2786.4,4.6361]
[1645853952060,3.5332051,2788.1,2786.4,4.72583]
[1645853952259,1.65979619,2788.0,2786.6,0.3545]
[1645853952474,1.51639619,2787.9,2786.6,0.8655]
[1645853952663,1.51639619,2787.9,2786.6,1.1655]
[1645853952864,1.51639619,2787.8,2786.6,1.2756]
[1645853953065,1.51639619,2787.7,2787.1,1.19881682]
[1645853953265,0.1434,2788.1,2787.1,1.19881682]
[1645853953466,1.516398,2788.0,2787.1,1.19881682]
[1645853953967,1.516398,2788.0,2787.4,0.00278325]
[1645853955020,1.516398,2788.0,2787.1,1.19881682]
[1645853955217,0.00514784,2787.9,2787.6,0.00514854]
[1645853955420,1.516398,2787.8,2787.6,0.00514854]
[1645853956217,1.516398,2787.8,2787.1,1.55331682]
[1645853956417,1.516398,2787.7,2787.6,0.00514854]
[1645853956617,1.516398,2787.8,2787.6,0.00514854]
[1645853956822,0.00514784,2787.9,2787.6,0.00514854]
[1645853957422,0.1434,2788.5,2787.1,1.99671682]
[1645853957626,0.0023689,2787.9,2787.1,1.99671682]
[1645853958662,1.51627371,2788.0,2787.1,1.99671682]
[1645853958862,0.00514755,2787.9,2787.4,0.00514862]
[1645853959864,0.00441828,2788.4,2787.1,1.99671682]
[1645853960064,0.00480593,2787.9,2787.5,0.00480667]
[1645853960665,0.00480593,2787.9,2787.1,1.80812349]
[1645853961064,0.00441828,2788.4,2787.1,1.80812349]
[1645853961265,1.51626071,2788.3,2787.1,1.55331682]
[1645853961468,0.00441828,2788.2,2787.1,1.55331682]
[1645853961667,1.51626071,2788.1,2787.1,1.55331682]
[1645853961968,1.52515294,2788.4,2787.1,1.19881682]
[1645853962171,0.00441828,2788.0,2787.1,1.19881682]
[1645853962417,0.3545,2788.2,2787.1,1.19881682]
[1645853962614,0.00441828,2788.1,2787.1,1.19881682]
[1645853962816,0.50441828,2788.1,2787.1,1.19881682]
[1645853963013,0.00441828,2788.1,2787.1,1.19881682]
[1645853963615,0.0023687,2787.9,2787.1,1.19881682]
[1645853964214,0.0023687,2787.9,2787.1,1.55331682]
[1645853964414,0.0023687,2787.9,2787.1,1.19881682]
[1645853964615,0.00441828,2788.4,2787.1,1.19881682]
[1645853964816,0.00514768,2787.9,2787.6,1.31789199]
[1645853965017,0.00514768,2787.9,2787.4,0.00514862]
[1645853965819,0.00441828,2788.2,2786.9,1.5383]
[1645853966017,0.00514781,2787.9,2787.4,1.13947448]
[1645853967073,0.00441828,2788.3,2787.4,1.13432573]
[1645853967274,0.00514781,2787.9,2787.4,1.13947448]
[1645853968181,0.00441828,2788.3,2787.4,1.13432573]
[1645853968582,0.00514781,2787.9,2787.4,1.13947448]
[1645853969482,0.00441828,2788.3,2787.4,1.13432573]
[1645853969682,0.00514781,2787.9,2787.4,1.13947448]
[1645853970614,0.00441828,2788.3,2787.4,1.13947448]
[1645853970615,0.00441828,2788.3,2787.4,1.13432573]
[1645853970808,0.00514781,2787.9,2787.4,1.13947448]
[1645853971608,0.00514781,2787.9,2787.4,0.00514875]
[1645853971809,0.00441828,2788.3,2786.9,1.5383]
[1645853972009,0.00514781,2787.9,2787.4,0.00514875]
[1645853972821,0.00514781,2787.9,2786.7,17.5748515]
[1645853972822,0.01544624,2787.3,2786.7,0.25]
[1645853973022,0.01544624,2787.3,2785.2,2.2059]
[1645853973023,0.01252738,2787.0,2785.2,2.2059]
[1645853973222,0.01252738,2787.0,2785.2,2.4557]
[1645853973223,5.0,2786.9,2785.2,2.4557]
[1645853973420,0.3545,2786.6,2784.9,0.25]
[1645853973675,5.0,2786.7,2784.9,0.25]
[1645853973676,0.3545,2786.4,2784.9,0.25]
[1645853973880,1.43597389,2785.6,2784.9,0.25]
[1645853974076,1.43597389,2785.6,2784.6,0.00283278]
[1645853974077,1.79047389,2785.6,2784.6,0.00283278]
[1645853974276,3.8545,2785.5,2784.6,0.00283278]
[1645853974474,0.3545,2785.5,2784.6,0.00283278]
[1645853975178,1.3545,2785.7,2784.6,0.00283278]
[1645853975381,0.1436,2785.9,2784.6,0.00283278]
[1645853975578,1.0,2786.0,2784.6,0.00283278]
[1645853975975,4.6436,2786.2,2784.6,0.00283278]
[1645853976178,1.19620487,2786.0,2785.1,1.04919719]
[1645853976380,0.3545,2786.1,2785.1,1.04919719]
[1645853976580,0.1434,2786.0,2784.7,0.08979]
[1645853976977,0.1434,2786.0,2785.4,0.00515057]
[1645853977445,1.0,2786.3,2785.4,0.00515057]
[1645853977636,6.07460454,2786.5,2785.4,0.00515057]
[1645853977833,7.37460454,2786.5,2785.1,0.08978]
[1645853978033,7.37460454,2786.5,2785.7,0.00515027]
[1645853978835,3.87460454,2786.5,2785.7,0.00515027]
[1645853979034,3.87460454,2786.5,2785.1,2.45758]
[1645853979035,0.3545,2786.4,2785.1,2.45758]
[1645853979233,3.87460454,2786.5,2786.0,0.00515002]
[1645853979234,3.5,2786.3,2786.0,0.00515002]
[1645853979437,3.87460454,2786.5,2786.0,0.00515002]
[1645853979633,7.37460454,2786.5,2786.0,0.00515002]
[1645853979834,3.87460454,2786.5,2786.0,0.00515002]
[1645853980034,7.37460454,2786.5,2786.0,0.00515002]
[1645853980240,0.3545,2786.4,2785.3,1.1983364]
[1645853980435,7.23120454,2786.5,2786.1,0.00514987]
[1645853980639,2.3,2786.5,2786.1,0.00514987]
[1645853980836,1.0,2786.5,2786.1,0.00514987]
[1645853981268,0.04999999,2786.7,2786.1,0.00514987]
[1645853981472,0.04999999,2786.7,2785.4,0.08977]
[1645853981674,0.04999999,2786.7,2786.2,0.00514982]
[1645853981675,1.2081237,2786.4,2786.2,0.00514982]
[1645853982474,0.04999999,2786.7,2786.2,0.00514982]
[1645853982676,0.04999999,2786.7,2785.3,4.1338364]
[1645853982875,0.04999999,2786.7,2786.2,0.00514982]
[1645853983876,1.09487942,2786.4,2785.3,4.4338364]
[1645853984077,1.09487942,2786.4,2786.3,0.00514967]
[1645853984476,0.04999999,2786.7,2786.3,0.00514967]
[1645853985131,0.04999999,2786.7,2785.3,4.4338364]
[1645853985331,3.54999999,2786.7,2786.4,0.00514962]
[1645853985531,1.02063462,2786.5,2786.4,0.00514962]
[1645853985730,0.04999999,2786.7,2786.4,0.00514962]
[1645853986132,0.5,2786.6,2786.4,0.00514962]
[1645853986334,0.5,2786.6,2785.5,0.25]
[1645853986533,0.04999999,2786.7,2786.4,0.00514957]
[1645853986733,1.13281084,2786.6,2786.4,0.00514957]
[1645853987337,0.04999999,2786.7,2786.4,0.00514957]
[1645853987537,0.04999999,2786.7,2785.5,1.14763]
[1645853987838,0.04999999,2786.7,2786.4,0.00514962]
[1645853988669,0.04999999,2786.7,2785.5,1.14763]
[1645853988876,1.09675153,2786.6,2786.4,0.00514957]
[1645853989875,1.45125153,2786.6,2785.5,0.25]
[1645853990078,1.09675153,2786.6,2786.4,0.00514962]
[1645853990277,0.04999999,2786.7,2786.4,0.00514962]
[1645853990875,0.1434,2786.6,2786.4,0.00514962]
[1645853991077,0.1434,2786.6,2785.5,0.25]
[1645853991278,3.6434,2786.6,2786.4,0.00514957]
[1645853991480,1.22814527,2786.5,2786.4,0.00514957]
[1645853991677,1.29803147,2786.6,2786.4,0.00514957]
[1645853991878,1.0,2786.6,2786.4,0.00514957]
[1645853992422,0.04999999,2786.7,2786.4,0.00514962]
[1645853992817,0.01029923,2786.3,2785.5,0.25]
[1645853993018,0.01029923,2786.3,2785.5,0.3]
[1645853993219,0.01029923,2786.3,2785.3,3.2355]
[1645853993421,0.01029923,2786.3,2785.3,2.9355]
[1645853994022,0.01029923,2786.3,2785.3,3.29]
[1645853994218,0.01029923,2786.3,2785.5,0.89763]
[1645853994419,0.01029923,2786.3,2785.6,1.8849274]
[1645853994619,0.01029923,2786.3,2785.6,1.7951674]
[1645853994818,0.01029923,2786.3,2785.6,2.0951674]
[1645853995021,0.01029923,2786.3,2785.7,0.511]
[1645853995421,0.01029923,2786.3,2786.0,1.41860825]
[1645853996019,0.01029923,2786.3,2786.0,1.42375822]
[1645853997071,0.01029923,2786.3,2786.0,1.41860825]
[1645853997274,0.01029923,2786.3,2786.0,1.42375822]
[1645853998279,0.01029923,2786.3,2786.0,1.41860825]
[1645853998479,0.01029923,2786.3,2786.0,1.42375822]
[1645853998878,0.01029923,2786.3,2786.0,0.00514997]
[1645853999581,0.01029923,2786.3,2785.6,1.1975874]
[1645853999778,0.01029923,2786.3,2786.0,0.00514997]
[1645854000625,0.01029923,2786.3,2785.8,0.3]
[1645854000824,0.01029923,2786.3,2786.0,0.00514997]
[1645854001834,0.01029923,2786.3,2785.6,2.31443231]
[1645854002029,0.01029923,2786.3,2786.0,0.00514997]
[1645854003029,0.01029923,2786.3,2785.6,2.61443231]
[1645854003230,0.01029923,2786.3,2786.0,0.00514997]
[1645854004261,0.01029923,2786.3,2785.6,2.61443231]
[1645854004462,0.01029923,2786.3,2786.0,0.00514997]
[1645854005462,0.01029923,2786.3,2785.6,2.61443231]
[1645854005665,0.01029923,2786.3,2786.0,0.00514997]
[1645854006666,0.01029923,2786.3,2785.4,1.1762]
[1645854006864,0.01029923,2786.3,2786.0,0.00514997]
[1645854007922,0.01029923,2786.3,2785.4,1.1762]
[1645854008125,0.01029923,2786.3,2786.0,0.00514997]
[1645854008325,3.51029923,2786.3,2786.0,0.00514997]
[1645854008724,0.1434,2786.2,2786.0,0.00514997]
[1645854009133,0.4979,2786.2,2784.9,0.25]
[1645854009325,0.3545,2786.0,2784.9,0.27060787]
[1645854009527,3.8545,2785.9,2784.9,0.27060787]
[1645854009728,0.3545,2785.9,2784.9,0.27060787]
[1645854009923,1.3545,2785.9,2784.9,0.27060787]
[1645854010323,0.3545,2785.9,2784.9,0.25]
[1645854010524,5.18073521,2786.1,2785.3,0.00515071]
[1645854010723,5.0,2786.1,2785.3,0.00515071]
[1645854010924,1.5,2786.1,2785.3,0.00515071]
[1645854011183,0.5,2786.1,2785.3,0.00515071]
[1645854011382,0.1434,2786.2,2784.9,0.25]
[1645854011580,0.4979,2786.2,2784.9,0.25]
[1645854011784,0.1434,2786.2,2785.6,0.00505384]
[1645854011980,1.06501644,2785.9,2785.6,0.00505384]
[1645854012180,0.1434,2786.2,2785.6,0.00505384]
[1645854012583,0.1434,2786.2,2784.9,0.25]
[1645854012984,0.1434,2786.2,2785.8,0.00505365]
[1645854013790,0.1434,2786.2,2785.0,1.2208]
[1645854014287,0.1434,2786.2,2785.9,0.00505355]
[1645854014487,0.01029923,2786.3,2785.9,0.00505355]
[1645854014691,0.0151071,2785.7,2784.9,0.27022113]